bitfinex/quotes_BTCUSD_20250110
["timestamp","ask_amount","ask_price","bid_price","bid_amount"]
[1736522782277,0.01299395,93183.0,93161.0,0.214681]
[1736522782512,0.214639,93180.0,93157.0,0.21469]
[1736522782717,0.0010701,93179.0,93157.0,0.21469]
[1736522782922,0.023,93177.0,93147.0,0.214712]
[1736522783174,0.0010701,93177.0,93155.0,0.214694]
[1736522783780,0.214627,93185.0,93168.0,0.214665]
[1736522784078,0.0010701,93184.0,93146.0,7e-05]
[1736522784276,0.0010701,93184.0,93177.0,0.00765172]
[1736522784488,0.214642,93178.0,93155.0,0.214693]
[1736522784690,0.0010701,93177.0,93155.0,0.10429976]
[1736522784905,0.214667,93168.0,93156.0,0.10429976]
[1736522785114,0.214676,93164.0,93146.0,7e-05]
[1736522785314,0.214687,93159.0,93147.0,0.10429976]
[1736522785561,0.0010701,93158.0,93146.0,7e-05]
[1736522785762,0.214714,93147.0,93146.0,7e-05]
[1736522786116,0.237714,93147.0,93146.0,7e-05]
[1736522786359,0.49201376,93147.0,93146.0,7e-05]
[1736522786980,0.237714,93147.0,93146.0,7e-05]
[1736522787329,0.22744003,93147.0,93146.0,7e-05]
[1736522788271,0.25344003,93147.0,93146.0,7e-05]
[1736522789420,0.22744003,93147.0,93146.0,7e-05]
[1736522789633,0.01272603,93147.0,93146.0,7e-05]
[1736522789817,0.214713,93148.0,93146.0,7e-05]
[1736522790018,0.0240701,93147.0,93146.0,7e-05]
[1736522790234,0.0010701,93147.0,93146.0,7e-05]
[1736522790451,0.0123886,93148.0,93146.0,7e-05]
[1736522790659,0.01196,93171.0,93146.0,7e-05]
[1736522790893,0.0010701,93170.0,93153.0,0.2147]
[1736522791101,0.0809,93187.0,93147.0,0.11215666]
[1736522791102,0.214666,93168.0,93147.0,0.0078569]
[1736522791305,0.214666,93168.0,93146.0,7e-05]
[1736522791306,0.214691,93157.0,93154.0,0.00781235]
[1736522791535,0.0010701,93156.0,93146.0,7e-05]
[1736522791733,0.214709,93150.0,93146.0,7e-05]
[1736522791941,0.06711781,93149.0,93146.0,7e-05]
[1736522792142,0.0240701,93149.0,93146.0,7e-05]
[1736522792355,0.173,93147.0,93146.0,7e-05]
[1736522792554,0.27836986,93147.0,93146.0,7e-05]
[1736522792795,0.27729976,93147.0,93146.0,7e-05]
[1736522793346,0.38159952,93147.0,93146.0,1e-08]
[1736522793551,0.60259642,93147.0,93146.0,1e-08]
[1736522793957,0.61551758,93147.0,93146.0,1e-08]
[1736522794158,0.61551758,93147.0,93103.0,0.00926171]
[1736522794159,0.023,93133.0,93103.0,0.00926171]
[1736522794307,0.173,93131.0,93103.0,0.00926171]
[1736522794513,0.173,93128.0,93104.0,0.00544121]
[1736522794696,0.214794,93113.0,93103.0,0.00926171]
[1736522794891,0.214795,93112.0,93103.0,0.00926171]
[1736522795417,0.214806,93107.0,93103.0,0.00926171]
[1736522795817,0.21495258,93107.0,93103.0,0.00926171]
[1736522796230,0.00014658,93107.0,93103.0,0.00926171]
[1736522796428,0.00014658,93107.0,93104.0,0.11081503]
[1736522796628,0.00014658,93107.0,93106.0,0.0773]
[1736522796993,0.00014658,93107.0,93106.0,0.18159976]
[1736522797212,0.00014658,93107.0,93106.0,0.28810557]
[1736522797451,0.00014658,93107.0,93106.0,0.28703165]
[1736522797651,0.00014658,93107.0,93106.0,0.43703165]
[1736522798182,0.00114658,93107.0,93106.0,0.43703165]
[1736522798392,0.00114658,93107.0,93106.0,0.32474759]
[1736522798593,0.00114658,93107.0,93106.0,0.17474759]
[1736522798799,0.00114658,93107.0,93106.0,0.27310548]
[1736522799000,0.00114658,93107.0,93106.0,0.17474759]
[1736522799288,0.00114658,93107.0,93106.0,0.12340815]
[1736522799536,0.00014658,93107.0,93106.0,0.12233428]
[1736522799792,0.00014658,93107.0,93106.0,0.37340816]
[1736522800007,0.00014658,93107.0,93106.0,0.27233428]
[1736522800220,0.00014658,93107.0,93106.0,0.12233428]
[1736522800432,0.00114658,93107.0,93106.0,0.12233428]
[1736522801291,0.214683,93161.0,93138.0,0.214734]
[1736522801496,0.0808,93178.0,93154.0,0.214697]
[1736522801704,0.536292,93233.0,93151.0,0.214705]
[1736522801705,0.00014647,93152.0,93151.0,0.214705]
[1736522801915,0.00014647,93152.0,93151.0,0.39400476]
[1736522802159,0.00014647,93152.0,93151.0,0.40183807]
[1736522802373,0.00014647,93152.0,93151.0,0.66431168]
[1736522802589,0.214608,93194.0,93163.0,0.214677]
[1736522802803,0.02135254,93213.0,93175.0,0.31894876]
[1736522803007,0.000171,93236.0,93194.0,0.10429976]
[1736522803219,0.000171,93236.0,93192.0,0.1]
[1736522803220,0.042993,93220.0,93196.0,0.10429976]
[1736522803435,0.00014652,93226.0,93223.0,0.214538]
[1736522803846,0.00014652,93226.0,93225.0,0.364534]
[1736522804023,0.00014652,93226.0,93225.0,0.359534]
[1736522804279,0.00014652,93226.0,93224.0,0.00732372]
[1736522804492,0.00014652,93226.0,93225.0,0.00838932]
[1736522804706,0.00014652,93226.0,93225.0,0.00838924]
[1736522805514,0.00014652,93226.0,93225.0,0.00731674]
[1736522805952,0.00014652,93226.0,93225.0,0.10429976]
[1736522806158,0.00014652,93226.0,93225.0,0.1116165]
[1736522807161,0.00014652,93226.0,93225.0,0.00731674]
[1736522807365,0.00121662,93226.0,93193.0,0.214608]
[1736522807590,0.429116,93215.0,93194.0,0.31890576]
[1736522807794,0.01267939,93226.0,93225.0,0.003]
[1736522807969,0.03567939,93226.0,93225.0,0.003]
[1736522808171,0.37721139,93226.0,93225.0,0.01031674]
[1736522808401,0.37721139,93226.0,93225.0,0.003]
[1736522808571,0.22721139,93226.0,93225.0,0.003]
[1736522808774,0.00014652,93226.0,93225.0,0.10729976]
[1736522808975,0.00014652,93226.0,93225.0,0.10229976]
[1736522809210,0.00014652,93226.0,93225.0,0.1096165]
[1736522810030,0.00014652,93226.0,93225.0,0.3596165]
[1736522811311,0.000171,93264.0,93225.0,0.3596165]
[1736522811312,0.000171,93264.0,93259.0,0.214456]
[1736522811531,0.000171,93264.0,93259.0,0.41875576]
[1736522811737,0.00031739,93260.0,93259.0,0.42583544]
[1736522812148,0.00031739,93260.0,93259.0,0.57583544]
[1736522812795,0.00031739,93260.0,93259.0,0.59251029]
[1736522813000,0.00031739,93260.0,93259.0,0.34251029]
[1736522813205,0.00031739,93260.0,93259.0,0.12805429]
[1736522813414,0.00031739,93260.0,93259.0,0.12912634]
[1736522814035,0.00031739,93260.0,93259.0,0.12512634]
[1736522814210,0.00031739,93260.0,93259.0,0.22512634]
[1736522814420,0.00031739,93260.0,93259.0,0.22805429]
[1736522814773,0.00031739,93260.0,93259.0,0.22405429]
[1736522815173,0.00031739,93260.0,93259.0,0.22805429]
[1736522815400,0.00031739,93260.0,93259.0,0.11537944]
[1736522815605,0.00031739,93260.0,93259.0,0.11137944]
[1736522816085,0.00031739,93260.0,93259.0,0.11537944]
[1736522816706,0.00031739,93260.0,93259.0,0.11645152]
[1736522817224,0.00031739,93260.0,93259.0,0.21645152]
[1736522817399,0.00031739,93260.0,93259.0,0.46537944]
[1736522817602,0.00031739,93260.0,93259.0,0.51107944]
[1736522817805,0.00031739,93260.0,93259.0,0.52299944]
[1736522817979,0.000171,93264.0,93263.0,0.35]
[1736522818184,0.000171,93264.0,93263.0,0.75429976]
[1736522818387,0.000171,93264.0,93263.0,0.76135156]
[1736522818561,0.000171,93264.0,93263.0,0.36135156]
[1736522818768,0.000171,93264.0,93263.0,0.26135156]
[1736522818971,0.000171,93264.0,93263.0,0.36135156]
[1736522819363,0.001171,93264.0,93263.0,0.26835156]
[1736522819953,0.000171,93264.0,93263.0,0.26135156]
[1736522820159,0.000171,93264.0,93263.0,0.36535156]
[1736522820365,0.000171,93264.0,93263.0,0.11535156]
[1736522820787,0.000171,93264.0,93263.0,0.11642359]
[1736522822352,0.000171,93264.0,93263.0,0.21642359]
[1736522822557,0.000171,93264.0,93263.0,0.21135156]
[1736522822759,0.000171,93264.0,93263.0,0.21435156]
[1736522823408,0.000171,93264.0,93263.0,0.11135156]
[1736522823826,0.000171,93264.0,93263.0,0.11335156]
[1736522824239,0.000171,93264.0,93263.0,0.11135156]
[1736522824583,0.000171,93264.0,93263.0,0.0070518]
[1736522824785,0.000171,93264.0,93259.0,0.00049099]
[1736522824786,0.214447,93263.0,93259.0,0.00049099]
[1736522825010,0.000171,93264.0,93259.0,0.00049099]
[1736522825223,0.000171,93264.0,93261.0,0.428902]
[1736522825440,0.000171,93264.0,93262.0,0.11243067]
[1736522825852,0.000171,93264.0,93262.0,0.11135853]
[1736522826250,0.000171,93264.0,93263.0,0.005]
[1736522826464,0.000171,93264.0,93263.0,0.11635156]
[1736522826669,0.000171,93264.0,93263.0,0.11135156]
[1736522827431,0.012091,93264.0,93263.0,0.0070518]
[1736522827660,0.012091,93264.0,93259.0,1e-08]
[1736522827661,0.451894,93263.0,93259.0,1e-08]
[1736522827887,0.15,93259.0,93217.0,0.00107261]
[1736522828088,0.15,93257.0,93223.0,0.214538]
[1736522828299,0.214497,93242.0,93225.0,0.214534]
[1736522828498,0.214497,93242.0,93226.0,0.10429976]
[1736522828697,0.15,93257.0,93227.0,0.21453]
[1736522828900,0.13374932,93264.0,93217.0,0.00014639]
[1736522828901,0.13374932,93264.0,93247.0,0.214482]
[1736522829102,0.075271,93264.0,93248.0,0.10429976]
[1736522829360,0.1740701,93263.0,93217.0,0.1]
[1736522829571,0.1740701,93263.0,93201.0,0.1469]
[1736522829572,0.10429976,93262.0,93220.0,0.10429976]
[1736522829877,0.214514,93234.0,93220.0,0.10429976]
[1736522830035,0.001,93242.0,93220.0,0.10429976]
[1736522830243,0.214524,93230.0,93220.0,0.10444615]
[1736522830448,0.02136712,93246.0,93220.0,0.10444615]
[1736522830651,0.0240701,93245.0,93220.0,0.10444615]
[1736522830830,0.214541,93223.0,93220.0,0.00014639]
[1736522831027,0.214543,93221.0,93220.0,0.00014639]
[1736522832263,0.214543,93221.0,93220.0,0.00214639]
[1736522832847,0.214543,93221.0,93220.0,0.00014639]
[1736522833247,0.237543,93221.0,93220.0,0.00014639]
[1736522833451,0.214543,93221.0,93220.0,0.00014639]
[1736522833979,0.023,93220.0,93179.0,0.1]
[1736522834184,0.00012026,93221.0,93193.0,0.214607]
[1736522834385,0.00012026,93221.0,93202.0,0.214587]
[1736522834591,0.00012026,93221.0,93194.0,0.00107289]
[1736522834592,0.00012026,93221.0,93180.0,0.214637]
[1736522834796,0.214598,93198.0,93181.0,0.10429976]
[1736522834992,0.00012026,93221.0,93181.0,0.10429976]
[1736522834993,0.214617,93190.0,93181.0,0.10429976]
[1736522835201,0.023,93203.0,93181.0,0.10429976]
[1736522835426,0.214611,93192.0,93181.0,0.10429976]
[1736522835666,0.214599,93197.0,93181.0,0.10429976]
[1736522835870,0.21461,93193.0,93181.0,0.10429976]
[1736522836069,0.214599,93197.0,93181.0,0.10429976]
[1736522836307,0.21471923,93197.0,93181.0,0.10429976]
[1736522836486,0.21471923,93197.0,93182.0,0.214633]
[1736522836705,0.00012023,93197.0,93183.0,0.10429976]
[1736522837057,0.214607,93194.0,93183.0,0.10429976]
[1736522837179,0.214607,93194.0,93157.0,0.1]
[1736522837180,0.214657,93172.0,93157.0,0.01200033]
[1736522837391,0.214657,93172.0,93158.0,0.10429976]
[1736522837601,0.214659,93171.0,93158.0,0.10429976]
[1736522837818,0.214669,93167.0,93158.0,0.10429976]
[1736522838178,0.214659,93171.0,93158.0,0.10429976]
[1736522838551,0.214659,93171.0,93159.0,0.214686]
[1736522838783,0.214654,93173.0,93160.0,0.10429976]
[1736522839016,0.01259654,93176.0,93160.0,0.10429976]
[1736522839238,0.0804,93220.0,93175.0,0.10429976]
[1736522839440,0.01209376,93209.0,93187.0,0.21462]
[1736522839649,0.0010701,93208.0,93188.0,0.10429976]
[1736522839845,0.0804,93220.0,93188.0,0.10429976]
[1736522839846,0.214603,93196.0,93188.0,0.10429976]
[1736522840055,0.214603,93196.0,93171.0,0.214658]
[1736522840056,0.214557,93215.0,93189.0,0.10429976]
[1736522840293,0.0010701,93214.0,93189.0,0.10537285]
[1736522840499,0.0010701,93214.0,93200.0,0.214591]
[1736522840710,0.214562,93213.0,93201.0,0.10429976]
[1736522840919,0.15,93212.0,93201.0,0.10429976]
[1736522841132,0.15,93212.0,93200.0,0.00048898]
[1736522841133,0.0010701,93211.0,93200.0,0.00048898]
[1736522841363,0.214548,93219.0,93201.0,0.10429976]
[1736522841568,0.214579,93206.0,93201.0,0.10429976]
[1736522841768,0.0010701,93205.0,93200.0,0.00048898]
[1736522841978,0.214555,93216.0,93201.0,0.10429976]
[1736522842183,0.09258736,93220.0,93201.0,0.10429976]
[1736522842393,0.09258736,93220.0,93200.0,0.00048898]
[1736522842394,0.0010701,93215.0,93200.0,0.00048898]
[1736522842766,0.023,93219.0,93201.0,0.10429976]
[1736522842767,0.214573,93209.0,93201.0,0.10429976]
[1736522842971,0.023,93216.0,93200.0,0.00048898]
[1736522843178,0.0462,93225.0,93201.0,0.10429976]
[1736522843381,0.0492,93245.0,93211.0,0.15]
[1736522843585,0.0826,93251.0,93214.0,0.31456]
[1736522843586,0.001,93215.0,93214.0,0.31456]
[1736522843789,0.001,93215.0,93214.0,0.46456]
[1736522844140,0.214469,93254.0,93221.0,0.15]
[1736522844348,0.21447,93253.0,93237.0,0.214506]
[1736522844526,0.21447,93253.0,93221.0,0.15]
[1736522844527,0.0010701,93252.0,93228.0,0.214526]
[1736522844740,0.0010701,93252.0,93201.0,0.02353887]
[1736522844741,0.214535,93225.0,93211.0,0.214565]
[1736522844952,0.023,93255.0,93212.0,0.10429976]
[1736522845159,0.214467,93255.0,93225.0,0.10429976]
[1736522845359,0.0010701,93254.0,93226.0,0.10429976]
[1736522845571,0.214496,93242.0,93226.0,0.10429976]
[1736522845787,0.0001464,93255.0,93236.0,0.09929976]
[1736522846006,0.0001464,93255.0,93247.0,0.214483]
[1736522846218,0.0001464,93255.0,93254.0,0.214468]
[1736522846483,0.0001464,93255.0,93254.0,0.31876776]
[1736522846700,0.0001464,93255.0,93254.0,0.46876776]
[1736522846907,0.0001464,93255.0,93254.0,0.66876776]
[1736522847110,0.0001464,93255.0,93254.0,0.46876776]
[1736522847324,0.0001464,93255.0,93254.0,0.10429976]
[1736522847966,0.0001464,93255.0,93241.0,0.214497]
[1736522848177,0.0001464,93255.0,93242.0,0.53328976]
[1736522848383,0.0001464,93255.0,93242.0,0.10429976]
[1736522848616,0.2145,93240.0,93206.0,0.01188]
[1736522848819,0.01184273,93255.0,93219.0,0.10429976]
[1736522848820,0.03328272,93255.0,93219.0,0.10429976]
[1736522849024,0.214491,93244.0,93228.0,0.214527]
[1736522849227,0.21447,93253.0,93229.0,0.10429976]
[1736522849438,0.214472,93252.0,93230.0,0.0010725]
[1736522849640,0.0001464,93255.0,93231.0,0.10429976]
[1736522849845,0.0001464,93255.0,93242.0,0.214494]
[1736522850182,0.0001464,93255.0,93243.0,0.10537211]
[1736522850399,0.002,93244.0,93243.0,0.10537211]
[1736522850813,0.0001464,93255.0,93254.0,0.214468]
[1736522850986,0.0001464,93255.0,93254.0,0.10429976]
[1736522851763,0.0001464,93255.0,93236.0,0.214508]
[1736522851959,0.0001464,93255.0,93237.0,0.10429976]
[1736522852236,0.0001464,93255.0,93237.0,0.10537215]
[1736522852446,0.0001464,93255.0,93247.0,0.10429976]
[1736522852650,0.0001464,93255.0,93254.0,0.10429976]
[1736522854026,0.0001464,93255.0,93120.0,0.5000851]
[1736522854027,0.02267704,93255.0,93210.0,0.1]
[1736522854251,0.214502,93239.0,93219.0,0.10429976]
[1736522854668,0.0010701,93238.0,93219.0,0.10429976]
[1736522855026,0.226278,93243.0,93220.0,0.0010727]
[1736522855225,0.1,93268.0,93224.0,0.10429976]
[1736522855226,0.0458,93262.0,93224.0,0.10429976]
[1736522855465,0.0010701,93248.0,93224.0,0.10429976]
[1736522856221,0.023,93246.0,93224.0,0.10429976]
[1736522856433,0.0010701,93245.0,93224.0,0.10429976]
[1736522856641,0.214531,93227.0,93206.0,0.214576]
[1736522856856,0.0010701,93226.0,93207.0,0.10429976]
[1736522857067,0.0458,93226.0,93174.0,0.1]
[1736522857271,0.214538,93224.0,93208.0,0.10429976]
[1736522857479,0.15,93243.0,93219.0,0.214546]
[1736522857696,0.0458,93247.0,93220.0,0.10429976]
[1736522857697,0.0010701,93242.0,93220.0,0.10429976]
[1736522857900,0.214532,93226.0,93219.0,0.10429976]
[1736522858128,0.214532,93226.0,93211.0,0.214565]
[1736522858129,0.1,93258.0,93221.0,0.10429976]
[1736522858329,0.214535,93225.0,93219.0,0.10429976]
[1736522858543,0.42907,93225.0,93219.0,0.10429976]
[1736522858752,0.214535,93225.0,93219.0,0.10429976]
[1736522858963,0.214519,93232.0,93219.0,0.10429976]
[1736522859205,0.214491,93244.0,93220.0,0.10537247]
[1736522859419,0.21451,93236.0,93220.0,0.10429976]
[1736522859635,0.21452,93232.0,93220.0,0.10429976]
[1736522859834,0.0010701,93231.0,93206.0,0.00014652]
[1736522860038,0.023,93243.0,93206.0,0.00014652]
[1736522860039,0.173,93241.0,93207.0,0.10429976]
[1736522860247,0.21456,93214.0,93207.0,0.10429976]
[1736522860462,0.214539,93223.0,93207.0,0.10429976]
[1736522860666,0.173,93234.0,93208.0,0.001]
[1736522860879,0.214559,93215.0,93209.0,0.10429976]
[1736522861098,0.429138,93210.0,93206.0,0.00014652]
[1736522861311,0.214569,93210.0,93206.0,0.00014652]
[1736522861523,0.237573,93208.0,93207.0,0.001]
[1736522861777,0.023,93207.0,93206.0,0.00014652]
[1736522862001,0.0010701,93207.0,93206.0,0.00014652]
[1736522862438,0.1740701,93207.0,93206.0,0.00014652]
[1736522864452,0.151,93207.0,93206.0,0.00014652]
[1736522864812,0.155,93207.0,93206.0,0.00014652]
[1736522865013,0.15,93207.0,93206.0,0.00014652]
[1736522865252,0.152,93207.0,93206.0,0.00014652]
[1736522865634,0.175,93207.0,93206.0,0.00014652]
[1736522865851,0.1740701,93207.0,93206.0,0.00014652]
[1736522866259,0.1750701,93207.0,93206.0,0.00014652]
[1736522866639,0.154,93207.0,93206.0,0.00014652]
[1736522866876,0.4685712,93207.0,93206.0,0.00014652]
[1736522867087,0.28129976,93207.0,93206.0,0.00014652]
[1736522867506,0.28029976,93207.0,93206.0,0.00014652]
[1736522867711,0.27729976,93207.0,93206.0,0.00014652]
[1736522867915,0.27929976,93207.0,93206.0,0.00014652]
[1736522868114,0.32429276,93207.0,93206.0,0.00014652]
[1736522868318,0.42659252,93207.0,93206.0,0.00014652]
[1736522868521,0.1,93197.0,93176.0,8.54e-05]
[1736522868728,0.237645,93177.0,93176.0,8.54e-05]
[1736522869111,0.214645,93177.0,93176.0,8.54e-05]
[1736522869537,0.237645,93177.0,93176.0,8.54e-05]
[1736522870044,0.24942458,93177.0,93176.0,0.00057438]
[1736522870620,0.39942458,93177.0,93176.0,0.00057438]
[1736522870996,0.59873099,93177.0,93176.0,0.00057438]
[1736522871209,0.50372434,93177.0,93176.0,0.00057438]
[1736522871417,0.214721,93144.0,93143.0,8.55e-05]
[1736522871588,0.023,93162.0,93143.0,8.55e-05]
[1736522871791,0.214715,93147.0,93143.0,8.55e-05]
[1736522871990,0.42943,93147.0,93143.0,8.55e-05]
[1736522873166,0.023,93144.0,93143.0,8.55e-05]
[1736522873323,0.0240701,93144.0,93143.0,8.55e-05]
[1736522873542,0.04575031,93144.0,93143.0,8.55e-05]
[1736522874595,0.19575031,93144.0,93143.0,8.55e-05]
[1736522874723,0.19675031,93144.0,93143.0,8.55e-05]
[1736522874940,0.19075031,93144.0,93143.0,8.55e-05]
[1736522875513,0.27348706,93144.0,93143.0,8.55e-05]
[1736522875716,0.47671672,93144.0,93143.0,8.55e-05]
[1736522876310,0.1,93141.0,93131.0,8.54e-05]
[1736522876571,0.214748,93132.0,93131.0,8.54e-05]
[1736522876793,0.21476,93127.0,93126.0,8.52e-05]
[1736522877003,0.23776,93127.0,93126.0,0.00023167]
[1736522877931,0.38776,93127.0,93126.0,0.00023167]
[1736522878132,0.214792,93113.0,93094.0,8.55e-05]
[1736522878353,0.214792,93113.0,93096.0,0.21483]
[1736522878533,0.214788,93115.0,93100.0,0.214821]
[1736522879104,0.0828,93129.0,93105.0,0.21481]
[1736522879105,0.01188,93121.0,93105.0,0.21481]
[1736522879379,0.214782,93118.0,93100.0,0.214821]
[1736522879824,0.214792,93114.0,93100.0,0.214821]
[1736522880035,0.0010701,93113.0,93094.0,8.55e-05]
[1736522880453,0.0010701,93113.0,93112.0,0.0010852]
[1736522880870,0.0010701,93113.0,93112.0,8.52e-05]
[1736522881297,0.0010701,93113.0,93112.0,0.0020852]
[1736522881298,0.214792,93113.0,93112.0,0.0020852]
[1736522881912,0.01188,93114.0,93112.0,0.0020852]
[1736522882343,0.214756,93129.0,93113.0,0.31909176]
[1736522882543,0.214762,93127.0,93113.0,0.10429976]
[1736522882781,0.214762,93127.0,93112.0,0.0020852]
[1736522882782,0.214775,93121.0,93112.0,0.0020852]
[1736522883082,0.214775,93121.0,93112.0,0.10638496]
[1736522883222,0.21476,93127.0,93112.0,0.10638496]
[1736522883445,0.214756,93129.0,93114.0,0.21479]
[1736522883657,0.214756,93129.0,93112.0,0.0020852]
[1736522883658,0.0010701,93128.0,93112.0,8.52e-05]
[1736522883857,0.214784,93117.0,93112.0,8.52e-05]
[1736522884593,0.01148016,93132.0,93113.0,0.10429976]
[1736522884810,0.214756,93129.0,93114.0,0.21479]
[1736522885004,0.214756,93129.0,93115.0,0.10429976]
[1736522885339,0.214756,93129.0,93112.0,0.2148792]
[1736522885340,0.0010701,93128.0,93112.0,0.1000852]
[1736522885546,0.214791,93114.0,93112.0,0.1000852]
[1736522886113,0.023,93113.0,93112.0,0.1000852]
[1736522886341,0.1740701,93113.0,93112.0,0.1000852]
[1736522886600,0.173,93111.0,93108.0,8.55e-05]
[1736522886750,0.173,93109.0,93108.0,0.00057391]
[1736522886959,0.27729976,93109.0,93108.0,0.00057391]
[1736522887176,0.38159952,93109.0,93108.0,1e-08]
[1736522887565,0.27729976,93109.0,93108.0,1e-08]
[1736522888205,0.28029976,93109.0,93108.0,1e-08]
[1736522888410,0.29217976,93109.0,93108.0,1e-08]
[1736522888651,0.18488,93109.0,93108.0,1e-08]
[1736522888838,0.214799,93110.0,93108.0,1e-08]
[1736522889250,0.1510701,93109.0,93108.0,1e-08]
[1736522889968,0.16188,93109.0,93108.0,1e-08]
[1736522890207,0.1739501,93109.0,93108.0,1e-08]
[1736522890610,0.214795,93112.0,93108.0,1e-08]
[1736522890902,0.214799,93110.0,93108.0,1e-08]
[1736522891106,0.005,93109.0,93108.0,1e-08]
[1736522891447,0.1760701,93109.0,93108.0,1e-08]
[1736522891552,0.27836986,93109.0,93108.0,1e-08]
[1736522891762,0.173,93109.0,93108.0,1e-08]
[1736522891972,0.1740701,93109.0,93108.0,1e-08]
[1736522892171,0.214799,93110.0,93108.0,1e-08]
[1736522892616,0.215795,93112.0,93108.0,0.10429977]
[1736522892617,0.001,93112.0,93108.0,0.10429977]
[1736522892816,0.214797,93111.0,93108.0,1e-08]
[1736522893027,0.001,93112.0,93108.0,1e-08]
[1736522893236,0.001,93112.0,93109.0,0.10429976]
[1736522893544,0.21472,93145.0,93111.0,0.10429976]
[1736522893743,0.0010701,93144.0,93119.0,0.10229976]
[1736522893945,0.0010701,93153.0,93121.0,0.10429976]
[1736522894149,0.2157611,93157.0,93135.0,0.21474]
[1736522894349,0.214691,93157.0,93145.0,0.214716]
[1736522894609,0.01174311,93167.0,93131.0,0.21475]
[1736522894762,0.214707,93150.0,93136.0,0.214738]
[1736522894974,0.002,93145.0,93137.0,0.10429976]
[1736522895181,0.2033267,93149.0,93137.0,0.31903676]
[1736522895389,0.15,93166.0,93137.0,0.10429976]
[1736522895588,0.214712,93148.0,93137.0,0.10429976]
[1736522896017,0.214695,93156.0,93137.0,0.10429976]
[1736522896219,0.001,93145.0,93144.0,0.214721]
[1736522896393,0.001,93145.0,93144.0,0.10429976]
[1736522896801,0.001,93145.0,93137.0,0.002]
[1736522896999,0.214721,93144.0,93138.0,0.10429976]
[1736522897261,0.214721,93144.0,93137.0,0.002]
[1736522897262,0.023,93142.0,93137.0,0.002]
[1736522897461,0.387735,93138.0,93137.0,0.002]
[1736522897867,0.214735,93138.0,93137.0,0.002]
[1736522898870,0.21522283,93138.0,93137.0,0.002]
[1736522899069,0.00048783,93138.0,93137.0,0.10629976]
[1736522900499,0.00048783,93138.0,93137.0,0.10537332]
[1736522900860,0.00048783,93138.0,93137.0,0.10629976]
[1736522901069,0.00048783,93138.0,93137.0,0.10537321]
[1736522901505,0.00148783,93138.0,93137.0,0.10737321]
[1736522901702,0.00148783,93138.0,93137.0,0.10629976]
[1736522901974,0.00048783,93138.0,93137.0,0.10429976]
[1736522902171,0.00148783,93138.0,93137.0,0.002]
[1736522902449,0.00148783,93138.0,93115.0,0.1238]
[1736522902450,0.214758,93128.0,93115.0,0.0768]
[1736522902654,0.00048783,93138.0,93116.0,0.10429976]
[1736522902859,0.00048783,93138.0,93097.0,0.079]
[1736522902860,0.27836986,93137.0,93097.0,0.079]
[1736522903062,0.023,93135.0,93104.0,0.10429976]
[1736522903266,0.214793,93113.0,93104.0,0.10429976]
[1736522903900,0.023,93134.0,93104.0,0.10429976]
[1736522903901,0.21478,93119.0,93104.0,0.31911176]
[1736522904285,0.214789,93115.0,93104.0,0.31911176]
[1736522904666,0.01177092,93134.0,93104.0,0.10429976]
[1736522904883,0.00048783,93138.0,93112.0,0.15]
[1736522905082,0.00048783,93138.0,93129.0,0.214755]
[1736522905287,0.00048783,93138.0,93117.0,0.0786]
[1736522905288,0.00048783,93138.0,93137.0,0.214737]
[1736522905468,0.00048783,93138.0,93137.0,0.31903676]
[1736522905668,0.00048783,93138.0,93137.0,0.10429976]
[1736522906094,0.00048783,93138.0,93122.0,0.214771]
[1736522906289,0.214737,93137.0,93124.0,0.214767]
[1736522906517,0.214737,93137.0,93117.0,0.0786]
[1736522906518,0.0010701,93136.0,93114.0,0.214789]
[1736522906715,0.0010701,93136.0,93126.0,0.214762]
[1736522906920,0.00048783,93138.0,93135.0,0.214741]
[1736522907078,0.00048783,93138.0,93136.0,0.10429976]
[1736522907283,0.00048783,93138.0,93137.0,0.004]
[1736522907485,0.00148783,93138.0,93137.0,0.11029976]
[1736522907686,0.00048783,93138.0,93137.0,0.004]
[1736522907895,0.00048783,93138.0,93137.0,0.10429976]
[1736522908114,0.214737,93137.0,93101.0,0.562919]
[1736522908320,0.0010701,93136.0,93115.0,0.10429976]
[1736522908538,0.00048783,93138.0,93135.0,0.002]
[1736522908755,0.00048783,93138.0,93136.0,0.31903876]
[1736522908964,0.00048783,93138.0,93136.0,0.10429976]
[1736522909410,0.42995783,93138.0,93135.0,0.002]
[1736522909587,0.00048783,93138.0,93136.0,0.10429976]
[1736522910203,0.00048783,93138.0,93135.0,0.002]
[1736522910383,0.15,93136.0,93135.0,0.003]
[1736522910608,0.1740701,93136.0,93135.0,0.003]
[1736522910925,0.1740701,93136.0,93135.0,0.001]
[1736522911479,0.023,93135.0,93098.0,0.214826]
[1736522911684,0.214797,93111.0,93104.0,0.10429976]
[1736522912111,0.21479,93115.0,93104.0,0.10429976]
[1736522912337,0.214789,93115.0,93105.0,0.10429976]
[1736522912507,0.214797,93111.0,93105.0,0.10429976]
[1736522912714,0.214809,93106.0,93094.0,8.55e-05]
[1736522912913,0.214813,93104.0,93094.0,8.55e-05]
[1736522913958,0.00048753,93104.0,93094.0,8.55e-05]
[1736522914507,0.00048753,93104.0,93103.0,0.01126171]
[1736522914712,0.00048753,93104.0,93103.0,0.01526171]
[1736522915152,0.00048753,93104.0,93103.0,0.01326171]
[1736522915353,0.00048753,93104.0,93103.0,0.01526171]
[1736522915762,0.00048753,93104.0,93103.0,0.11956147]
[1736522917201,0.00048753,93104.0,93103.0,0.11463546]
[1736522917447,0.00148753,93104.0,93103.0,0.11963546]
[1736522917616,0.00148753,93104.0,93103.0,0.12163546]
[1736522917836,0.00148753,93104.0,93103.0,0.12056147]
[1736522918277,0.00048753,93104.0,93103.0,0.11463537]
[1736522918681,0.00148753,93104.0,93103.0,0.11856147]
[1736522918925,0.00248753,93104.0,93103.0,0.12356147]
[1736522920236,0.21630053,93104.0,93103.0,0.01426171]
[1736522920418,0.00148753,93104.0,93103.0,0.01426171]
[1736522920625,0.00148753,93104.0,93103.0,0.01826171]
[1736522921073,0.00048753,93104.0,93103.0,0.00926171]
[1736522921274,0.00148753,93104.0,93103.0,0.02226171]
[1736522921677,0.00048753,93104.0,93103.0,0.11856147]
[1736522922071,0.00048753,93104.0,93103.0,0.12056147]
[1736522922273,0.00048753,93104.0,93103.0,0.11556147]
[1736522922620,0.00048753,93104.0,93103.0,0.11756147]